bitfinex-derivatives/quotes_BTCF0:USTF0_20250509
["timestamp","ask_amount","ask_price","bid_price","bid_amount"]
[1746770576965,0.41267,103060.0,103050.0,0.5490076]
[1746770577168,0.57267,103060.0,103050.0,0.5490076]
[1746770577472,0.57267,103060.0,103050.0,0.4776465]
[1746770577872,0.57267,103060.0,103050.0,0.5490076]
[1746770578375,0.57267,103060.0,103050.0,0.5338307]
[1746770580675,0.21187,103060.0,103050.0,0.5338307]
[1746770582473,0.21187,103060.0,103050.0,0.5538307]
[1746770583473,0.20945,103060.0,103050.0,0.5338307]
[1746770583772,0.20945,103060.0,103050.0,0.54863698]
[1746770584072,0.20945,103060.0,103050.0,0.96943698]
[1746770584259,0.04945,103060.0,103050.0,0.96943698]
[1746770586170,0.20945,103060.0,103050.0,0.96943698]
[1746770586768,0.21187,103060.0,103050.0,0.96943698]
[1746770587171,0.05187,103060.0,103050.0,0.96943698]
[1746770587766,0.05187,103060.0,103050.0,1.13943698]
[1746770587969,0.05187,103060.0,103050.0,0.96943698]
[1746770588369,0.02027,103060.0,103050.0,1.15943698]
[1746770589572,0.02027,103060.0,103050.0,1.17024951]
[1746770589773,0.02027,103060.0,103050.0,1.09888841]
[1746770590070,0.02027,103060.0,103050.0,1.17024951]
[1746770590461,0.02027,103060.0,103050.0,1.51024951]
[1746770590669,0.02027,103060.0,103050.0,1.30815698]
[1746770590871,0.03612,103060.0,103050.0,0.94735698]
[1746770591173,0.19612,103060.0,103050.0,0.60735698]
[1746770591375,0.25802,103060.0,103050.0,0.60735698]
[1746770592167,0.25802,103060.0,103050.0,0.60731698]
[1746770592367,0.25802,103060.0,103050.0,0.53595588]
[1746770592674,0.25802,103060.0,103050.0,0.60731698]
[1746770592872,0.61882,103060.0,103050.0,0.60731698]
[1746770593076,0.61882,103060.0,103050.0,0.53595588]
[1746770593776,0.61882,103060.0,103050.0,0.36171588]
[1746770593980,0.61882,103060.0,103050.0,0.53595588]
[1746770594275,0.61882,103060.0,103050.0,0.47595588]
[1746770595179,0.8129108,103060.0,103050.0,0.27161588]
[1746770595365,0.6901811,103060.0,103050.0,0.32723588]
[1746770596069,0.61882,103060.0,103050.0,0.32723588]
[1746770597478,0.25802,103060.0,103050.0,0.39859698]
[1746770597671,0.25802,103060.0,103050.0,0.42979698]
[1746770598677,0.25802,103060.0,103050.0,0.44061111]
[1746770598877,0.25802,103060.0,103050.0,0.36925001]
[1746770599178,0.25802,103060.0,103050.0,0.44061111]
[1746770599481,0.29198,103060.0,103050.0,0.44061111]
[1746770600972,0.29198,103060.0,103050.0,0.47231111]
[1746770601177,0.49278,103060.0,103050.0,0.47231111]
[1746770601780,0.07008,103060.0,103050.0,0.47231111]
[1746770601980,0.07008,103060.0,103050.0,1.49447221]
[1746770602281,0.03968,103060.0,103050.0,1.42311111]
[1746770602577,0.03239827,103060.0,103050.0,1.42311111]
[1746770603171,0.02071717,103060.0,103050.0,1.42311111]
[1746770603581,0.02071717,103060.0,103050.0,1.4234326]
[1746770604677,0.02071717,103060.0,103050.0,1.4254326]
[1746770605079,0.02071717,103060.0,103050.0,1.3540715]
[1746770605480,0.02071717,103060.0,103050.0,1.42518981]
[1746770605781,0.02071717,103060.0,103050.0,1.06438981]
[1746770605982,0.02071717,103060.0,103050.0,1.42517515]
[1746770606181,0.02071717,103060.0,103050.0,1.35381405]
[1746770606484,0.02071717,103060.0,103050.0,1.42517515]
[1746770606977,0.02071717,103060.0,103050.0,1.35390489]
[1746770607177,0.02071717,103060.0,103050.0,1.42526599]
[1746770609382,0.02071717,103060.0,103050.0,1.42527659]
[1746770612577,0.02071717,103060.0,103050.0,1.42528292]
[1746770612776,0.01343545,103060.0,103050.0,1.42528292]
[1746770613176,0.00660884,103060.0,103050.0,1.42528292]
[1746770613676,0.00660884,103060.0,103050.0,1.49664402]
[1746770613980,0.00660884,103060.0,103050.0,1.42528292]
[1746770614185,0.16660884,103060.0,103050.0,1.42528292]
[1746770615186,0.00660884,103060.0,103050.0,1.42528292]
[1746770615484,0.04967,103070.0,103060.0,0.1940908]
[1746770615675,0.04967,103070.0,103060.0,0.69689784]
[1746770615875,0.04967,103070.0,103060.0,0.71170412]
[1746770616077,0.20967,103070.0,103060.0,0.71170412]
[1746770616476,0.21067,103070.0,103060.0,0.71170412]
[1746770617186,0.21067,103070.0,103060.0,0.78306522]
[1746770617384,0.19612,103070.0,103060.0,0.78306522]
[1746770617585,0.19612,103070.0,103060.0,0.71170412]
[1746770618083,0.21067,103070.0,103060.0,0.53170412]
[1746770618281,0.24087,103070.0,103060.0,0.53170412]
[1746770618678,0.23601565,103070.0,103060.0,0.53170412]
[1746770618879,0.23359565,103070.0,103060.0,0.53170412]
[1746770621184,0.23359565,103070.0,103060.0,0.46034302]
[1746770621383,0.26499565,103070.0,103060.0,0.53170412]
[1746770622989,0.25771413,103070.0,103060.0,0.53170412]
[1746770623287,0.25771413,103070.0,103060.0,0.53154388]
[1746770623889,0.25771413,103070.0,103060.0,0.52071818]
[1746770624789,0.25771413,103070.0,103060.0,0.53154754]
[1746770625789,0.25771413,103070.0,103060.0,0.52071818]
[1746770627688,0.19611413,103070.0,103060.0,0.52071818]
[1746770628187,0.19611413,103070.0,103060.0,0.72071818]
[1746770628688,0.19611413,103070.0,103060.0,0.69071818]
[1746770628889,0.25971413,103070.0,103060.0,0.61935708]
[1746770629190,0.25971413,103070.0,103060.0,0.69071818]
[1746770631093,0.25971413,103070.0,103060.0,0.52071818]
[1746770631483,0.25971413,103070.0,103060.0,0.72071818]
[1746770632190,0.25971413,103070.0,103060.0,0.52071818]
[1746770633001,0.25971413,103070.0,103060.0,0.44935708]
[1746770633290,0.25971413,103070.0,103060.0,0.52071818]
[1746770633490,0.25243261,103070.0,103060.0,0.52071818]
[1746770633990,0.24757826,103070.0,103060.0,0.52071818]
[1746770637095,0.24757826,103070.0,103060.0,0.5059119]
[1746770638398,0.24757826,103070.0,103060.0,0.6759119]
[1746770638697,0.24757826,103070.0,103060.0,0.5890319]
[1746770638887,0.24757826,103070.0,103060.0,0.4191519]
[1746770639086,0.24757826,103070.0,103060.0,0.5890319]
[1746770642095,0.17555,103070.0,103060.0,0.5890319]
[1746770642400,0.17555,103070.0,103060.0,1.140393]
[1746770642600,0.17555,103070.0,103060.0,1.150393]
[1746770642802,0.17555,103070.0,103060.0,0.960393]
[1746770642803,0.20805,103070.0,103060.0,0.960393]
[1746770643193,0.04805,103070.0,103060.0,0.6477908]
[1746770643502,0.40885,103070.0,103060.0,0.5371908]
[1746770643702,0.47225,103070.0,103060.0,0.5371908]
[1746770643995,0.47225,103070.0,103060.0,0.3677908]
[1746770644201,0.63225,103070.0,103060.0,0.5372308]
[1746770644409,0.63225,103070.0,103060.0,0.4269908]
[1746770644703,0.7036111,103070.0,103060.0,0.3943508]
[1746770645996,0.63225,103070.0,103060.0,0.3943508]
[1746770646201,0.63225,103070.0,103060.0,0.4984119]
[1746770647100,0.63225,103070.0,103060.0,0.5304119]
[1746770648001,0.63225,103070.0,103060.0,0.4590508]
[1746770648197,0.63225,103070.0,103060.0,0.5304119]
[1746770648501,0.73121719,103070.0,103060.0,0.5304119]
[1746770649393,0.73121719,103070.0,103060.0,0.4590508]
[1746770651101,0.73121719,103070.0,103060.0,0.2896908]
[1746770651301,0.73121719,103070.0,103060.0,0.4585708]
[1746770652204,0.73121719,103070.0,103060.0,0.5299319]
[1746770653804,0.73121719,103070.0,103060.0,0.4585708]
[1746770656204,0.70646879,103070.0,103060.0,0.4585708]
[1746770657905,0.77782989,103070.0,103060.0,0.4585708]
[1746770658099,0.97190179,103070.0,103060.0,0.3427308]
[1746770658499,0.77782989,103070.0,103060.0,0.3427308]
[1746770658695,0.97190179,103070.0,103060.0,0.3427308]
[1746770659500,0.97190179,103070.0,103060.0,0.2249908]
[1746770660305,0.97190179,103070.0,103060.0,0.2575908]
[1746770660603,0.80543598,103070.0,103060.0,0.2575908]
[1746770660904,0.99950788,103070.0,103060.0,0.2575908]
[1746770661798,0.80543598,103070.0,103060.0,0.3289519]
[1746770662005,0.80543598,103070.0,103060.0,0.3599519]
[1746770662199,0.64543598,103070.0,103060.0,0.3599519]
[1746770662512,0.64543598,103070.0,103060.0,0.3899519]
[1746770662698,0.58203598,103070.0,103060.0,0.3899519]
[1746770663604,0.58203598,103070.0,103060.0,0.3599519]
[1746770663805,0.64753598,103070.0,103060.0,0.3599519]
[1746770664117,0.64753598,103070.0,103060.0,0.3999519]
[1746770664906,0.64753598,103070.0,103060.0,0.3599519]
[1746770665102,0.64753598,103070.0,103060.0,0.3999519]
[1746770665409,0.54856879,103070.0,103060.0,0.3999519]
[1746770666102,0.54856879,103070.0,103060.0,0.3599519]
[1746770666307,0.54856879,103070.0,103060.0,0.3999519]
[1746770667406,0.54856879,103070.0,103060.0,0.3599519]
[1746770667705,0.54856879,103070.0,103060.0,0.3999519]
[1746770668406,0.54856879,103070.0,103060.0,0.3599519]
[1746770668603,0.54856879,103070.0,103060.0,0.4099519]
[1746770668806,0.54856879,103070.0,103060.0,0.3599519]
[1746770669008,0.54856879,103070.0,103060.0,0.4099519]
[1746770669408,0.54856879,103070.0,103060.0,0.3999519]
[1746770669807,0.54856879,103070.0,103060.0,0.3599519]
[1746770670004,0.54856879,103070.0,103060.0,0.3285908]
[1746770670205,0.54856879,103070.0,103060.0,0.2885908]
[1746770670407,0.53401879,103070.0,103060.0,0.2885908]
[1746770671803,0.53401879,103070.0,103060.0,0.2575908]
[1746770672409,0.72809069,103070.0,103060.0,0.2575908]
[1746770672607,0.53401879,103070.0,103060.0,0.2893908]
[1746770673209,0.69401879,103070.0,103060.0,0.2893908]
[1746770676503,0.33321879,103070.0,103060.0,0.2893908]
[1746770676707,0.69643879,103070.0,103060.0,0.2893908]
[1746770680112,0.79540598,103070.0,103060.0,0.2893908]
[1746770680914,0.98947788,103070.0,103060.0,0.2893908]
[1746770682208,1.06083898,103070.0,103060.0,0.2575908]
[1746770687114,0.98947788,103070.0,103060.0,0.2575908]
[1746770687309,1.06083898,103070.0,103060.0,0.2575908]
[1746770688213,0.86676708,103070.0,103060.0,0.2575908]
[1746770688408,0.76779989,103070.0,103060.0,0.2575908]
[1746770688613,0.76779989,103070.0,103060.0,0.2896908]
[1746770689617,0.69643879,103070.0,103060.0,0.2896908]
[1746770689819,0.76779989,103070.0,103060.0,0.2896908]
[1746770699231,0.69643879,103070.0,103060.0,0.2896908]
[1746770700328,0.53643879,103070.0,103060.0,0.2896908]
[1746770701232,0.89051069,103070.0,103060.0,0.2896908]
[1746770702928,0.96187179,103070.0,103060.0,0.2896908]
[1746770703532,0.69643879,103070.0,103060.0,0.2896908]
[1746770703734,0.63093879,103070.0,103060.0,0.2896908]
[1746770704235,0.47093879,103070.0,103060.0,0.2896908]
[1746770706434,0.43843879,103070.0,103060.0,0.3610519]
[1746770706827,0.07763879,103070.0,103060.0,0.3610519]
[1746770707031,0.43843879,103070.0,103060.0,0.3610519]
[1746770707224,0.07763879,103070.0,103060.0,0.3610519]
[1746770708036,0.07763879,103070.0,103060.0,0.36408586]
[1746770708430,0.00342,103070.0,103060.0,0.36408586]
[1746770709632,0.00342,103070.0,103060.0,0.3610519]
[1746770709838,0.00342,103070.0,103060.0,0.36408586]
[1746770710738,0.03482,103070.0,103060.0,0.29272476]
[1746770711238,0.55562,103070.0,103060.0,0.2896908]
[1746770711437,0.19482,103070.0,103060.0,0.2896908]
[1746770711737,0.55562,103070.0,103060.0,0.2896908]
[1746770713138,0.39562,103070.0,103060.0,0.2896908]
[1746770714138,0.55562,103070.0,103060.0,0.2896908]
[1746770715828,0.55562,103070.0,103060.0,0.3610519]
[1746770716031,0.52422,103070.0,103060.0,0.3610519]
[1746770716231,0.36422,103070.0,103060.0,0.3610519]
[1746770716435,0.00342,103070.0,103060.0,0.3610519]
[1746770718146,0.00342,103070.0,103060.0,0.2896908]
[1746770718336,0.03462,103070.0,103060.0,0.2896908]
[1746770719142,0.19462,103070.0,103060.0,0.2896908]
[1746770720142,0.03462,103070.0,103060.0,0.2896908]
[1746770722243,0.19462,103070.0,103060.0,0.2896908]
[1746770722744,0.20917,103070.0,103060.0,0.2896908]
[1746770723144,0.04917,103070.0,103060.0,0.2896908]
[1746770725239,0.20917,103070.0,103060.0,0.2896908]
[1746770727645,0.28338879,103070.0,103060.0,0.2896908]
[1746770729650,0.83826069,103070.0,103060.0,0.2896908]
[1746770729848,0.90116069,103070.0,103060.0,0.2896908]
[1746770731248,0.70708879,103070.0,103060.0,0.2896908]
[1746770731547,0.63287,103070.0,103060.0,0.2896908]
[1746770732146,0.63287,103070.0,103060.0,0.29272486]
[1746770735153,0.70708879,103070.0,103060.0,0.29272486]
[1746770741254,0.73687879,103070.0,103060.0,0.29272486]
[1746770743058,0.73687879,103070.0,103060.0,0.2896908]
[1746770743059,0.93095069,103070.0,103060.0,0.2896908]
[1746770743255,0.93095069,103070.0,103060.0,0.29272486]
[1746770745761,0.73687879,103070.0,103060.0,0.29272486]
[1746770745959,0.93095069,103070.0,103060.0,0.29272486]
[1746770747051,0.93095069,103070.0,103060.0,0.30745575]
[1746770748852,0.93095069,103070.0,103060.0,0.29272486]
[1746770749053,0.93095069,103070.0,103060.0,0.37008486]
[1746770750455,0.93095069,103070.0,103060.0,0.3670508]
[1746770750658,0.93095069,103070.0,103060.0,0.38480923]
[1746770751352,0.93095069,103070.0,103060.0,0.38464923]
[1746770752061,0.8567319,103070.0,103060.0,0.38464923]
[1746770753763,0.8567319,103070.0,103060.0,0.36992487]
[1746770755261,0.8567319,103070.0,103060.0,0.29272487]
[1746770755462,0.8567319,103070.0,103060.0,0.36968487]
[1746770757165,0.8567319,103070.0,103060.0,0.38440507]
[1746770757967,0.8567319,103070.0,103060.0,0.38440515]
[1746770758165,0.8567319,103070.0,103060.0,0.36968495]
[1746770758669,0.93095069,103070.0,103060.0,0.36968495]
[1746770759167,0.93095069,103070.0,103060.0,0.38437493]
[1746770759768,0.75284879,103070.0,103060.0,0.38437493]
[1746770760070,0.94692069,103070.0,103060.0,0.38437493]
[1746770760457,1.01828179,103070.0,103060.0,0.30741493]
[1746770760663,1.01828179,103070.0,103060.0,0.21181493]
[1746770760863,0.65748179,103070.0,103060.0,0.21181493]
[1746770761063,1.37908179,103070.0,103060.0,0.19712495]
[1746770761464,1.45044289,103070.0,103060.0,0.19712495]
[1746770761959,0.1941096,103050.0,103040.0,0.51672729]
[1746770762163,1.1470707,103050.0,103040.0,0.44284166]
[1746770762469,1.2436707,103050.0,103040.0,0.44284166]
[1746770762868,1.2582207,103050.0,103040.0,0.44284166]
[1746770763064,1.1868596,103050.0,103040.0,0.44284166]
[1746770763268,1.1868596,103050.0,103040.0,0.47714166]
[1746770763464,1.2582207,103050.0,103040.0,0.47914166]
[1746770764065,1.9373207,103050.0,103040.0,0.47914166]
[1746770764266,1.7773207,103050.0,103040.0,0.54494166]
[1746770764671,1.7773207,103050.0,103040.0,0.55975893]
[1746770764972,1.7773207,103050.0,103040.0,0.55672456]
[1746770765961,1.7797407,103050.0,103040.0,0.55672456]
[1746770766164,1.9695307,103050.0,103040.0,0.55672456]
[1746770767069,1.8095307,103050.0,103040.0,0.55672456]
[1746770767773,1.8095307,103050.0,103040.0,0.40809247]
[1746770768172,1.9695307,103050.0,103040.0,0.40809247]
[1746770770177,1.9695307,103050.0,103040.0,0.3932752]
[1746770771566,1.8981696,103050.0,103040.0,0.3932752]
[1746770771879,1.9695307,103050.0,103040.0,0.3932752]
[1746770772976,1.2479307,103050.0,103040.0,0.3932752]
[1746770773276,1.6087307,103050.0,103040.0,0.3932752]
[1746770774178,1.4487307,103050.0,103040.0,0.3932752]
[1746770775680,1.2546211,103050.0,103040.0,0.3932752]
[1746770775880,1.4487307,103050.0,103040.0,0.3932752]
[1746770777067,1.6087307,103050.0,103040.0,0.3932752]
[1746770777475,1.6087307,103050.0,103040.0,0.40796732]
[1746770777984,1.6087307,103050.0,103040.0,0.3932752]
[1746770778281,1.4487307,103050.0,103040.0,0.3932752]
[1746770779182,1.4487307,103050.0,103040.0,0.40792879]
[1746770780280,1.4487307,103050.0,103040.0,0.3932752]
[1746770780669,1.2546211,103050.0,103040.0,0.3932752]
[1746770780873,1.4487307,103050.0,103040.0,0.3932752]
[1746770782285,1.4487307,103050.0,103040.0,0.40799973]
[1746770782583,1.4487307,103050.0,103040.0,0.41103452]
[1746770783182,1.6087307,103050.0,103040.0,0.41103452]
[1746770784387,1.4487307,103050.0,103040.0,0.41103452]
[1746770784578,1.4487307,103050.0,103040.0,0.40799973]
[1746770784786,1.4487307,103050.0,103040.0,0.40699973]
[1746770784787,1.4497307,103050.0,103040.0,0.40699973]
[1746770784980,1.4497307,103050.0,103040.0,0.40499973]
[1746770788100,1.4497307,103050.0,103040.0,0.3902752]
[1746770788298,1.4657107,103050.0,103040.0,0.3902752]
[1746770788700,1.5336307,103050.0,103040.0,0.3902752]
[1746770792098,1.6936307,103050.0,103040.0,0.3902752]
[1746770792894,1.76784949,103050.0,103040.0,0.3902752]
[1746770794302,1.60784949,103050.0,103040.0,0.3572752]
[1746770794503,1.63210949,103050.0,103040.0,0.3544752]
[1746770794704,1.63210949,103050.0,103040.0,0.3244752]
[1746770795106,1.79210949,103050.0,103040.0,0.3244752]
[1746770796898,0.1941284,103040.0,103030.0,0.40650649]
[1746770797104,0.9547506,103040.0,103030.0,0.37580649]
[1746770797900,0.9990906,103040.0,103030.0,0.37580649]
[1746770798101,0.9297295,103040.0,103030.0,0.37580649]
[1746770798601,0.9307295,103040.0,103030.0,0.37580649]
[1746770798995,0.9307295,103040.0,103030.0,0.39051168]
[1746770799202,0.9317295,103040.0,103030.0,0.39051168]
[1746770799809,0.9307295,103040.0,103030.0,0.39051168]
[1746770800002,0.9337295,103040.0,103030.0,0.39051168]
[1746770800204,0.9337295,103040.0,103030.0,0.42341168]
[1746770800508,1.00794829,103040.0,103030.0,0.40870649]
[1746770801698,1.00794829,103040.0,103030.0,0.42341186]
[1746770802505,1.07930939,103040.0,103030.0,0.42341186]
[1746770802898,1.07930939,103040.0,103030.0,0.34197646]
[1746770803103,1.07930939,103040.0,103030.0,0.31027646]
[1746770803703,1.07930939,103040.0,103030.0,0.3088208]
[1746770803899,1.09528939,103040.0,103030.0,0.3088208]
[1746770804411,1.09528939,103040.0,103030.0,0.29411543]
[1746770809114,1.77438939,103040.0,103030.0,0.19705893]
[1746770811320,0.1941473,103030.0,103020.0,0.30767238]
[1746770811518,0.7206084,103030.0,103020.0,0.32236243]
[1746770811820,0.7206084,103030.0,103020.0,0.30767238]
[1746770812119,0.9103984,103030.0,103020.0,0.30767238]
[1746770812620,0.9133984,103030.0,103020.0,0.22683248]
[1746770812918,0.9133984,103030.0,103020.0,0.00097068]
[1746770813113,0.9847595,103030.0,103020.0,0.00097068]
[1746770813314,0.1941661,103020.0,103010.0,0.07767247]
[1746770813616,0.7928883,103020.0,103010.0,0.27185747]
[1746770814118,0.9528883,103020.0,103010.0,0.27185747]
[1746770814617,0.9528883,103020.0,103010.0,0.27285747]
[1746770815821,0.9528883,103020.0,103010.0,0.30445747]
[1746770817421,0.9771483,103020.0,103010.0,0.30445747]
[1746770817619,0.9917083,103020.0,103010.0,0.30445747]
[1746770817823,1.06592709,103020.0,103010.0,0.30445747]
[1746770819424,1.06592709,103020.0,103010.0,0.31914199]
[1746770820426,1.06592709,103020.0,103010.0,0.30445747]
[1746770820621,0.92320489,103020.0,103010.0,0.30445747]
[1746770820826,0.63383879,103020.0,103010.0,0.39581857]
[1746770821025,0.27303879,103020.0,103010.0,0.32445747]
[1746770821219,0.47383879,103020.0,103010.0,0.30445747]
[1746770821620,0.39962,103020.0,103010.0,0.30445747]
[1746770821825,0.5937861,103020.0,103010.0,0.30445747]
[1746770822121,0.39962,103020.0,103010.0,0.30445747]
[1746770822326,0.5937861,103020.0,103010.0,0.30445747]
[1746770822714,0.39962,103020.0,103010.0,0.33445747]
[1746770822915,0.6265861,103020.0,103010.0,0.31916158]
[1746770823219,0.6290061,103020.0,103010.0,0.31916158]
[1746770824618,0.7003672,103020.0,103010.0,0.31916158]
[1746770825122,0.7003672,103020.0,103010.0,0.30445747]
[1746770829733,0.6290061,103020.0,103010.0,0.30445747]
[1746770829935,0.7003672,103020.0,103010.0,0.30445747]
[1746770831733,0.7301572,103020.0,103010.0,0.30445747]
[1746770832930,0.6587961,103020.0,103010.0,0.30445747]
[1746770834034,0.6747761,103020.0,103010.0,0.30445747]
[1746770834234,0.6747761,103020.0,103010.0,0.31924882]
[1746770834738,0.6419761,103020.0,103010.0,0.31924882]
[1746770834932,0.6419761,103020.0,103010.0,0.39060992]
[1746770835237,0.08701,103020.0,103010.0,0.99804992]
[1746770835629,0.08701,103020.0,103010.0,1.34804992]
[1746770836232,0.08701,103020.0,103010.0,1.50804992]
[1746770838739,0.08701,103020.0,103010.0,1.33804992]
[1746770839440,0.08701,103020.0,103010.0,1.61512192]
[1746770839739,0.08701,103020.0,103010.0,1.61815714]
[1746770840639,0.08215364,103020.0,103010.0,1.61815714]
[1746770840839,0.06275,103020.0,103010.0,1.61815714]
[1746770841035,0.06275,103020.0,103010.0,1.54679604]
[1746770841234,0.13069,103020.0,103010.0,1.61815714]
[1746770841835,0.13069,103020.0,103010.0,1.61512192]
[1746770842544,0.13069,103020.0,103010.0,1.51804992]
[1746770843130,0.13069,103020.0,103010.0,1.35804992]
[1746770843330,0.16239,103020.0,103010.0,1.35804992]
[1746770843742,0.16239,103020.0,103010.0,1.17804992]
[1746770845535,0.16239,103020.0,103010.0,0.74588882]
[1746770845845,0.52319,103020.0,103010.0,0.39588882]
[1746770846044,0.58689,103020.0,103010.0,0.39588882]
[1746770846445,0.58689,103020.0,103010.0,0.46724992]
[1746770847345,0.55489,103020.0,103010.0,0.46724992]
[1746770847546,0.52319,103020.0,103010.0,0.46724992]
[1746770848044,0.52319,103020.0,103010.0,0.39588882]
[1746770848439,0.52319,103020.0,103010.0,0.46724992]
[1746770849546,0.52319,103020.0,103010.0,0.46720992]
[1746770853050,0.55379,103020.0,103010.0,0.46720992]
[1746770853553,0.58489,103020.0,103010.0,0.46720992]
[1746770855352,0.22409,103020.0,103010.0,0.82800992]
[1746770863457,0.22409,103020.0,103010.0,0.83800992]
[1746770863656,0.16239,103020.0,103010.0,1.33140992]
[1746770863856,0.16239,103020.0,103010.0,1.48460992]
[1746770864452,0.16239,103020.0,103010.0,1.41324882]
[1746770864653,0.16239,103020.0,103010.0,1.48460992]
[1746770866259,0.16239,103020.0,103010.0,1.64460992]
[1746770867258,0.16239,103020.0,103010.0,1.28460992]
[1746770868060,0.16239,103020.0,103010.0,1.26981857]
[1746770870559,0.19479,103020.0,103010.0,1.26981857]
[1746770872468,0.19479,103020.0,103010.0,1.46981857]
[1746770872651,0.19479,103020.0,103010.0,1.26981857]
[1746770875369,0.19479,103020.0,103010.0,1.19321857]
[1746770875561,0.19479,103020.0,103010.0,1.19845747]
[1746770875756,0.22559,103020.0,103010.0,1.19845747]
[1746770875960,0.22559,103020.0,103010.0,1.26981857]
[1746770876268,0.38559,103020.0,103010.0,1.26981857]
[1746770876656,0.38559,103020.0,103010.0,0.90901857]
[1746770878873,0.38559,103020.0,103010.0,0.83665747]
[1746770879171,0.38559,103020.0,103010.0,0.90901857]
[1746770879471,0.38559,103020.0,103010.0,0.83765747]
[1746770879662,0.38559,103020.0,103010.0,0.90801857]
[1746770879865,0.38559,103020.0,103010.0,0.83241857]
[1746770880157,0.38559,103020.0,103010.0,0.90897857]
[1746770880371,0.38559,103020.0,103010.0,0.83761747]
[1746770880571,0.38559,103020.0,103010.0,0.90897857]
[1746770880773,0.38559,103020.0,103010.0,0.52897857]
[1746770881675,0.38559,103020.0,103010.0,0.45761747]
[1746770881870,0.38559,103020.0,103010.0,0.52897857]
[1746770882864,0.38559,103020.0,103010.0,0.55897857]
[1746770884074,0.38559,103020.0,103010.0,0.54897857]
[1746770884471,0.38559,103020.0,103010.0,0.52897857]
[1746770884666,0.38559,103020.0,103010.0,0.56897857]
[1746770884976,0.38559,103020.0,103010.0,0.49761747]
[1746770885178,0.38559,103020.0,103010.0,0.61897857]
[1746770885368,0.38559,103020.0,103010.0,0.54761747]
[1746770885570,0.38559,103020.0,103010.0,0.61897857]
[1746770887678,0.74639,103020.0,103010.0,0.51601747]
[1746770888785,0.74639,103020.0,103010.0,0.43945747]
[1746770889080,0.74639,103020.0,103010.0,0.51601747]
[1746770889479,0.9405561,103020.0,103010.0,0.31885747]
[1746770889781,0.9405561,103020.0,103010.0,0.28635747]
[1746770890080,1.0119172,103020.0,103010.0,0.28635747]
[1746770891584,0.9405561,103020.0,103010.0,0.28635747]
[1746770893075,1.0119172,103020.0,103010.0,0.28635747]
[1746770893586,1.0832783,103020.0,103010.0,0.20975747]
[1746770893882,1.0119172,103020.0,103010.0,0.20975747]
[1746770897284,0.8177511,103020.0,103010.0,0.20975747]
[1746770897478,0.74639,103020.0,103010.0,0.34331857]
[1746770897682,0.74639,103020.0,103010.0,0.70903857]
[1746770897683,0.68319,103020.0,103010.0,0.70903857]
[1746770897883,0.68319,103020.0,103010.0,0.75903857]
[1746770898078,0.32239,103020.0,103010.0,0.75903857]
[1746770898277,0.16239,103020.0,103010.0,0.75903857]
[1746770898691,0.13069,103020.0,103010.0,1.04847747]
[1746770898985,0.13069,103020.0,103010.0,1.42983857]
[1746770902984,0.13069,103020.0,103010.0,1.24983857]
[1746770903181,0.16219,103020.0,103010.0,1.24983857]
[1746770906894,0.13069,103020.0,103010.0,1.44983857]
[1746770907693,0.16099,103020.0,103010.0,1.44983857]
[1746770909497,0.16099,103020.0,103010.0,1.29671857]
[1746770909699,0.16099,103020.0,103010.0,1.44971857]
[1746770909899,0.16099,103020.0,103010.0,0.88891857]
[1746770911096,0.32099,103020.0,103010.0,0.88891857]
[1746770912597,0.32099,103020.0,103010.0,0.52891857]
[1746770912797,0.32099,103020.0,103010.0,0.55891857]
[1746770914298,0.32099,103020.0,103010.0,0.52891857]
[1746770914500,0.32099,103020.0,103010.0,0.56891857]
[1746770914690,0.32099,103020.0,103010.0,0.52891857]
[1746770914887,0.32099,103020.0,103010.0,0.56891857]
[1746770915197,0.34525,103020.0,103010.0,0.92971857]
[1746770916302,0.34525,103020.0,103010.0,0.94440426]
[1746770919397,0.34525,103020.0,103010.0,0.83607836]
[1746770919601,0.34525,103020.0,103010.0,1.25743946]
[1746770920308,0.34525,103020.0,103010.0,1.25440426]
[1746770922809,0.41025,103020.0,103010.0,1.25440426]
[1746770923701,0.41025,103020.0,103010.0,1.10140426]
[1746770923908,0.41025,103020.0,103010.0,1.25436426]
[1746770929111,0.34525,103020.0,103010.0,1.25436426]
[1746770929313,0.34525,103020.0,103010.0,1.25739946]
[1746770932116,0.34525,103020.0,103010.0,1.18603836]
[1746770932417,0.34525,103020.0,103010.0,1.25739946]
[1746770936019,0.34525,103020.0,103010.0,1.25735946]
[1746770937121,0.18525,103020.0,103010.0,1.25735946]
[1746770938018,0.17796552,103020.0,103010.0,1.25735946]
[1746770938216,0.33796552,103020.0,103010.0,1.25735946]
[1746770938420,0.33069,103020.0,103010.0,1.25432426]
[1746770939620,0.39429,103020.0,103010.0,1.25432426]
[1746770940122,0.23429,103020.0,103010.0,1.25432426]
[1746770941115,0.39429,103020.0,103010.0,1.25432426]
[1746770942727,0.39429,103020.0,103010.0,1.18296316]
[1746770942925,0.39429,103020.0,103010.0,1.03004316]
[1746770943127,0.4656511,103020.0,103010.0,0.48304316]
[1746770943424,0.4656511,103020.0,103010.0,0.36304316]
[1746770943425,0.8264511,103020.0,103010.0,0.36304316]
[1746770943825,0.4656511,103020.0,103010.0,0.3632746]
[1746770944126,0.37003,103020.0,103010.0,0.3632746]
[1746770945328,0.37003,103020.0,103010.0,0.36631004]
[1746770945628,0.37003,103020.0,103010.0,0.39901004]
[1746770945925,0.33782,103020.0,103010.0,0.48901004]
[1746770947426,0.33782,103020.0,103010.0,0.4859746]
[1746770950829,0.36208,103020.0,103010.0,0.4859746]
[1746770951327,0.36208,103020.0,103010.0,0.48901004]
[1746770957031,0.29848,103020.0,103010.0,1.12117114]
[1746770957229,0.13848,103020.0,103010.0,1.28117114]
[1746770957427,0.13848,103020.0,103010.0,1.52117114]
[1746770958032,0.13119549,103020.0,103010.0,1.52117114]
[1746770958326,0.1225,103020.0,103010.0,1.36117114]
[1746770961535,0.1225,103020.0,103010.0,1.36117091]
[1746770961536,0.11764367,103020.0,103010.0,1.36117091]
[1746770961833,0.05456,103020.0,103010.0,1.36117091]
[1746770966739,0.05456,103020.0,103010.0,1.00037091]
[1746770966939,0.05456,103020.0,103010.0,1.36117091]
[1746770968937,0.0472755,103020.0,103010.0,1.36117091]
[1746770969432,0.0472755,103020.0,103010.0,1.08980981]
[1746770969633,0.0472755,103020.0,103010.0,1.16117091]
[1746770973038,0.0472755,103020.0,103010.0,0.83117091]
[1746770973244,0.0472755,103020.0,103010.0,0.86117091]
[1746770974343,0.0618355,103020.0,103010.0,0.86117091]
[1746770975659,0.0618355,103020.0,103010.0,0.93749091]
[1746770975852,0.0618355,103020.0,103010.0,0.93741091]
[1746770976453,0.0618355,103020.0,103010.0,0.90741091]
[1746770976650,0.3273627,103020.0,103010.0,0.76622981]
[1746770976856,0.8225238,103020.0,103010.0,0.37990981]
[1746770977048,0.90630595,103020.0,103010.0,0.31770981]